[Event "FIDE World Senior-50 CC 2023"]
[Site "Terrasini"]
[Date "2023.10.27"]
[Round "3.6"]
[White "Grant, Jonathan I M"]
[Black "Atalik, Suat"]
[Result "0-1"]
[ECO "A20"]
[WhiteElo "2150"]
[BlackElo "2427"]
[Annotator "ChessBase"]
[PlyCount "54"]
[EventDate "2023.10.22"]
[EventType "swiss"]
[EventCountry "ITA"]
[SourceTitle "playchess.com"]
[Source "ChessBase"]
[SourceQuality "1"]
[TimeControl "40/5400+30:1800+30"]

1. c4 {[%emt 0:00:03]} e5 {[%emt 0:00:23]} 2. g3 {[%emt 0:00:27]} Nf6 {[%emt 0:00:46]} 3. Bg2 {[%emt 0:00:08]} c6 {[%emt 0:00:21]} 4. Nf3 {[%emt 0:03:50]} e4 {[%emt 0:01:06]} 5. Nd4 {[%emt 0:01:31]} d5 {[%emt 0:00:28]} 6. cxd5 {[%emt 0:01:24]} Qxd5 {[%emt 0:00:16]} 7. Nc2 {[%emt 0:00:43]} Qh5 {[%emt 0:00:41]} 8. h3 {[%emt 0:08:52]} Qg6 {[%emt 0:01:02]} 9. Nc3 {[%emt 0:02:13]} Bc5 {[%emt 0:00:31]} 10. Ne3 {[%emt 0:05:02]} O-O {[%emt 0:02:56]} 11. Qc2 {[%emt 0:03:39]} Re8 {[%emt 0:00:59]} 12. b3 {[%emt 0:06:51]} Na6 {[%emt 0:01:56]} 13. a3 {[%emt 0:01:10]} Bd4 {[%emt 0:09:34]} 14. Bb2 {[%emt 0:03:48]} Nc5 {[%emt 0:19:34]} 15. Rb1 {[%emt 0:10:57]} Ncd7 {[%emt 0:14:08]} 16. Na4 {[%emt 0:10:46]} Bxb2 {[%emt 0:01:51]} 17. Nxb2 {[%emt 0:05:00]} Ne5 {[%emt 0:03:07]} 18. Nbc4 {[%emt 0:01:14]} Nxc4 {[%emt 0:02:34]} 19. bxc4 {[%emt 0:01:17]} Nd7 {[%emt 0:00:31]} 20. h4 {[%emt 0:16:31]} h5 {[%emt 0:02:20]} 21. c5 {[%emt 0:06:00]} Re5 {[%emt 0:02:55]} 22. Rb4 {[%emt 0:08:44]} Nxc5 {[%emt 0:05:06]} 23. Rc4 {[%emt 0:01:13]} b6 {[%emt 0:01:18]} 24. O-O {[%emt 0:00:35]} Ba6 {[%emt 0:00:27]} 25. Qb2 {[%emt 0:00:31]} Rae8 {[%emt 0:01:24]} 26. Rd4 {[%emt 0:00:24]} Bxe2 {[%emt 0:01:10]} 27. Ra1 {[%emt 0:00:26]} Nd3 {[%emt 0:02:23]} 0-1

[Event "FIDE World Senior-50 CC 2023"]
[Site "Terrasini"]
[Date "2023.10.27"]
[Round "3.7"]
[White "Lima, Darcy"]
[Black "Nikolaidis, Konstantinos"]
[Result "1-0"]
[ECO "E63"]
[WhiteElo "2416"]
[BlackElo "2096"]
[Annotator "ChessBase"]
[PlyCount "59"]
[EventDate "2023.10.22"]
[EventType "swiss"]
[EventCountry "ITA"]
[SourceTitle "playchess.com"]
[Source "ChessBase"]
[SourceQuality "1"]
[TimeControl "40/5400+30:1800+30"]

1. c4 {[%emt 0:00:08]} Nf6 {[%emt 0:01:31]} 2. g3 {[%emt 0:00:17]} g6 {[%emt 0:03:20]} 3. Bg2 {[%emt 0:00:57]} Bg7 {[%emt 0:01:57]} 4. Nc3 {[%emt 0:01:26]} O-O {[%emt 0:01:04]} 5. d4 {[%emt 0:00:05]} d6 {[%emt 0:02:40]} 6. h3 {[%emt 0:01:25]} Nc6 {[%emt 0:05:02]} 7. Nf3 {[%emt 0:00:30]} a6 {[%emt 0:01:18]} 8. e4 {[%emt 0:01:33]} Rb8 {[%emt 0:02:16]} 9. O-O {[%emt 0:00:40]} b5 {[%emt 0:13:44]} 10. d5 {[%emt 0:01:00]} Na5 {[%emt 0:02:21]} 11. cxb5 {[%emt 0:01:23]} axb5 {[%emt 0:00:28]} 12. b4 {[%emt 0:00:30]} Nc4 {[%emt 0:02:41]} 13. Nd4 {[%emt 0:00:40]} Bd7 {[%emt 0:02:46]} 14. Re1 {[%emt 0:04:31]} e5 {[%emt 0:05:09]} 15. Nc6 {[%emt 0:04:08]} Bxc6 {[%emt 0:00:31]} 16. dxc6 {[%emt 0:00:02]} Qe8 {[%emt 0:03:26]} 17. a4 {[%emt 0:10:08]} Qxc6 {[%emt 0:03:17]} 18. Nxb5 {[%emt 0:01:00]} Rfd8 {[%emt 0:07:58]} 19. Bg5 {[%emt 0:03:27]} Qd7 {[%emt 0:11:10]} 20. Bf1 {[%emt 0:09:37]} c6 {[%emt 0:06:08]} 21. Bxc4 {[%emt 0:00:40]} cxb5 {[%emt 0:00:09]} 22. Bxb5 {[%emt 0:00:02]} Qxh3 {[%emt 0:00:39]} 23. Bf1 {[%emt 0:06:20]} Qe6 {[%emt 0:00:07]} 24. b5 {[%emt 0:00:06]} d5 {[%emt 0:02:54]} 25. Qb3 {[%emt 0:00:52]} Qg4 {[%emt 0:07:51]} 26. Bxf6 {[%emt 0:00:40]} Bxf6 {[%emt 0:00:02]} 27. a5 {[%emt 0:02:12]} dxe4 {[%emt 0:01:07]} 28. a6 {[%emt 0:03:51]} e3 {[%emt 0:01:46]} 29. Qxe3 {[%emt 0:01:09]} e4 {[%emt 0:02:00]} 30. Ra4 {[%emt 0:00:56]} 1-0

[Event "FIDE World Senior-50 CC 2023"]
[Site "Terrasini"]
[Date "2023.10.27"]
[Round "3.8"]
[White "Sturua, Zurab"]
[Black "Lasinskas, Povilas"]
[Result "1-0"]
[ECO "E44"]
[WhiteElo "2514"]
[BlackElo "2143"]
[Annotator "ChessBase"]
[PlyCount "51"]
[EventDate "2023.10.22"]
[EventType "swiss"]
[EventCountry "ITA"]
[SourceTitle "playchess.com"]
[Source "ChessBase"]
[SourceQuality "1"]
[TimeControl "40/5400+30:1800+30"]

1. d4 {[%emt 0:00:10]} Nf6 {[%emt 0:00:19]} 2. c4 {[%emt 0:00:14]} e6 {[%emt 0:00:07]} 3. Nc3 {[%emt 0:00:51]} Bb4 {[%emt 0:00:09]} 4. e3 {[%emt 0:01:04]} O-O {[%emt 0:00:31]} 5. Nge2 {[%emt 0:01:40]} b6 {[%emt 0:00:25]} 6. a3 {[%emt 0:00:19]} Be7 {[%emt 0:00:07]} 7. e4 {[%emt 0:02:05]} d6 {[%emt 0:00:46]} 8. Ng3 {[%emt 0:06:12]} c5 {[%emt 0:01:58]} 9. d5 {[%emt 0:00:28]} exd5 {[%emt 0:01:48]} 10. cxd5 {[%emt 0:04:57]} Nbd7 {[%emt 0:09:07]} 11. Be2 {[%emt 0:04:05]} Ne8 {[%emt 0:00:58]} 12. O-O {[%emt 0:01:13]} g6 {[%emt 0:00:24]} 13. Bh6 {[%emt 0:02:10]} Ng7 {[%emt 0:00:08]} 14. f4 {[%emt 0:07:31]} a6 {[%emt 0:03:18]} 15. a4 {[%emt 0:01:10]} Qc7 {[%emt 0:05:42]} 16. Kh1 {[%emt 0:04:58]} Rb8 {[%emt 0:01:29]} 17. e5 {[%emt 0:11:09]} dxe5 {[%emt 0:03:18]} 18. Nce4 {[%emt 0:08:55]} Bd6 {[%emt 0:02:25]} 19. f5 {[%emt 0:02:45]} f6 {[%emt 0:00:54]} 20. Bg4 {[%emt 0:07:00]} Ne8 {[%emt 0:11:48]} 21. fxg6 {[%emt 0:05:36]} hxg6 {[%emt 0:00:13]} 22. Be6+ {[%emt 0:02:41]} Kh7 {[%emt 0:00:26]} 23. Qg4 {[%emt 0:02:02]} Kxh6 {[%emt 0:00:31]} 24. Nf5+ {[%emt 0:00:54]} gxf5 {[%emt 0:00:19]} 25. Rxf5 {[%emt 0:00:17]} Ng7 {[%emt 0:00:28]} 26. Ra3 {[%emt 0:00:34]} 1-0

[Event "FIDE World Senior-50 CC 2023"]
[Site "Terrasini"]
[Date "2023.10.27"]
[Round "3.9"]
[White "Plotkin, Victor"]
[Black "Dlugy, Maxim"]
[Result "1/2-1/2"]
[ECO "B22"]
[WhiteElo "2229"]
[BlackElo "2520"]
[Annotator "ChessBase"]
[PlyCount "86"]
[EventDate "2023.10.22"]
[EventType "swiss"]
[EventCountry "ITA"]
[SourceTitle "playchess.com"]
[Source "ChessBase"]
[SourceQuality "1"]
[TimeControl "40/5400+30:1800+30"]

1. e4 {[%emt 0:00:02]} c5 {[%emt 0:00:35]} 2. c3 {[%emt 0:00:06]} d5 {[%emt 0:00:24]} 3. exd5 {[%emt 0:00:08]} Qxd5 {[%emt 0:00:06]} 4. d4 {[%emt 0:00:07]} e6 {[%emt 0:01:02]} 5. Nf3 {[%emt 0:00:08]} Nf6 {[%emt 0:00:05]} 6. Be3 {[%emt 0:01:09]} cxd4 {[%emt 0:00:30]} 7. cxd4 {[%emt 0:00:08]} Nc6 {[%emt 0:00:05]} 8. Nc3 {[%emt 0:00:16]} Qd6 {[%emt 0:00:04]} 9. Bc4 {[%emt 0:05:21]} Be7 {[%emt 0:02:54]} 10. O-O {[%emt 0:07:51]} O-O {[%emt 0:01:04]} 11. a3 {[%emt 0:00:22]} Rd8 {[%emt 0:03:34]} 12. Qd2 {[%emt 0:05:41]} a6 {[%emt 0:07:34]} 13. Rfd1 {[%emt 0:06:02]} b5 {[%emt 0:01:12]} 14. Ba2 {[%emt 0:01:42]} b4 {[%emt 0:08:48]} 15. Na4 {[%emt 0:09:21]} bxa3 {[%emt 0:20:58]} 16. bxa3 {[%emt 0:01:16]} Nd5 {[%emt 0:02:14]} 17. Bxd5 {[%emt 0:07:15]} exd5 {[%emt 0:00:04]} 18. Nb6 {[%emt 0:00:33]} Ra7 {[%emt 0:00:05]} 19. Nxc8 {[%emt 0:00:54]} Rxc8 {[%emt 0:00:03]} 20. Rdc1 {[%emt 0:02:49]} Rb7 {[%emt 0:06:11]} 21. Ne5 {[%emt 0:04:48]} Na7 {[%emt 0:00:32]} 22. Rxc8+ {[%emt 0:07:42]} Nxc8 {[%emt 0:00:20]} 23. a4 {[%emt 0:04:44]} Qb6 {[%emt 0:08:20]} 24. g3 {[%emt 0:05:17]} f6 {[%emt 0:03:53]} 25. Nd3 {[%emt 0:01:56]} Nd6 {[%emt 0:00:02]} 26. Nf4 {[%emt 0:04:58]} Nc4 {[%emt 0:00:06]} 27. Qc2 {[%emt 0:02:14]} Qd6 {[%emt 0:07:44]} 28. Rc1 {[%emt 0:01:42]} Rc7 {[%emt 0:04:22]} 29. Qb1 {[%emt 0:03:20]} Bf8 {[%emt 0:07:03]} 30. Qb8 {[%emt 0:01:35]} Rd7 {[%emt 0:00:26]} 31. Qb3 {[%emt 0:06:27]} Qa3 {[%emt 0:02:04]} 32. Qxa3 {[%emt 0:01:30]} Bxa3 {[%emt 0:00:07]} 33. Rb1 {[%emt 0:01:33]} Kf7 {[%emt 0:01:07]} 34. Rb8 {[%emt 0:01:37]} Bd6 {[%emt 0:00:51]} 35. Ra8 {[%emt 0:00:55]} Bxf4 {[%emt 0:00:08]} 36. Bxf4 {[%emt 0:00:31]} g5 {[%emt 0:00:05]} 37. Be3 {[%emt 0:00:44]} Rd6 {[%emt 0:01:48]} 38. h4 {[%emt 0:01:43]} h6 {[%emt 0:01:09]} 39. Kg2 {[%emt 0:02:37]} Nb2 {[%emt 0:01:19]} 40. g4 {[%emt 0:00:44]} Nxa4 {[%emt 0:02:55]} 41. Ra7+ {[%emt 0:30:42]} Kg8 {[%emt 0:36:48]} 42. Ra8+ {[%emt 0:00:35]} Kf7 {[%emt 0:00:05]} 43. Ra7+ {[%emt 0:00:04]} Kg8 {[%emt 0:00:04]} 1/2-1/2

[Event "FIDE World Senior-50 CC 2023"]
[Site "Terrasini"]
[Date "2023.10.27"]
[Round "3.10"]
[White "Mohr, Georg"]
[Black "Jhunjhnuwala, Krishan"]
[Result "1-0"]
[ECO "B38"]
[WhiteElo "2430"]
[BlackElo "2268"]
[Annotator "ChessBase"]
[PlyCount "95"]
[EventDate "2023.10.22"]
[EventType "swiss"]
[EventCountry "ITA"]
[SourceTitle "playchess.com"]
[Source "ChessBase"]
[SourceQuality "1"]
[TimeControl "40/5400+30:1800+30"]

1. e4 {[%emt 0:00:14]} c5 {[%emt 0:00:04]} 2. Nf3 {[%emt 0:00:05]} Nc6 {[%emt 0:00:03]} 3. d4 {[%emt 0:01:28]} cxd4 {[%emt 0:00:05]} 4. Nxd4 {[%emt 0:00:04]} g6 {[%emt 0:00:39]} 5. c4 {[%emt 0:01:52]} Bg7 {[%emt 0:00:46]} 6. Be3 {[%emt 0:00:07]} Nf6 {[%emt 0:01:01]} 7. Nc3 {[%emt 0:00:06]} d6 {[%emt 0:00:34]} 8. Be2 {[%emt 0:00:34]} O-O {[%emt 0:00:55]} 9. O-O {[%emt 0:00:04]} Bd7 {[%emt 0:00:49]} 10. Qd2 {[%emt 0:05:44]} Nxd4 {[%emt 0:00:50]} 11. Bxd4 {[%emt 0:00:07]} Bc6 {[%emt 0:00:29]} 12. f3 {[%emt 0:07:39]} a5 {[%emt 0:00:46]} 13. b3 {[%emt 0:01:37]} Nd7 {[%emt 0:00:45]} 14. Bf2 {[%emt 0:00:07]} Nc5 {[%emt 0:01:57]} 15. Rab1 {[%emt 0:00:21]} Qb6 {[%emt 0:06:25]} 16. Rfc1 {[%emt 0:00:08]} Qb4 {[%emt 0:10:47]} 17. Rc2 {[%emt 0:13:25]} Rfc8 {[%emt 0:11:42]} 18. Bf1 {[%emt 0:05:32]} a4 {[%emt 0:07:55]} 19. Nd5 {[%emt 0:21:47]} Qxd2 {[%emt 0:00:35]} 20. Rxd2 {[%emt 0:00:02]} Bxd5 {[%emt 0:03:33]} 21. Rxd5 {[%emt 0:01:12]} axb3 {[%emt 0:00:50]} 22. axb3 {[%emt 0:00:03]} Bc3 {[%emt 0:12:25]} 23. b4 {[%emt 0:02:48]} Na4 {[%emt 0:01:26]} 24. c5 {[%emt 0:05:29]} Be5 {[%emt 0:02:05]} 25. cxd6 {[%emt 0:03:49]} exd6 {[%emt 0:02:19]} 26. Ra5 {[%emt 0:01:15]} Kf8 {[%emt 0:12:44]} 27. g3 {[%emt 0:01:26]} Ke7 {[%emt 0:01:16]} 28. Bh3 {[%emt 0:07:41]} Rcb8 {[%emt 0:01:22]} 29. f4 {[%emt 0:01:08]} Bc3 {[%emt 0:01:51]} 30. Rd5 {[%emt 0:07:15]} Bg7 {[%emt 0:03:00]} 31. Re1 {[%emt 0:03:09]} b6 {[%emt 0:02:02]} 32. e5 {[%emt 0:00:21]} dxe5 {[%emt 0:00:32]} 33. Rd7+ {[%emt 0:10:21]} Kf8 {[%emt 0:02:41]} 34. fxe5 {[%emt 0:00:00]} Rd8 {[%emt 0:03:09]} 35. e6 {[%emt 0:00:00]} fxe6 {[%emt 0:00:22]} 36. Bxe6 {[%emt 0:00:00]} Rxd7 {[%emt 0:00:34]} 37. Bxd7 {[%emt 0:00:00]} Bc3 {[%emt 0:04:04]} 38. Re4 {[%emt 0:00:00]} Kf7 {[%emt 0:01:09]} 39. Bc6 {[%emt 0:00:00]} Ra7 {[%emt 0:00:40]} 40. Re3 {[%emt 0:00:00]} Bb2 {[%emt 0:04:01]} 41. Rb3 {[%emt 0:28:36]} Bc1 {[%emt 0:03:31]} 42. Kg2 {[%emt 0:00:00]} Nb2 {[%emt 0:04:21]} 43. Bxb6 {[%emt 0:00:00]} Re7 {[%emt 0:01:31]} 44. Bd5+ {[%emt 0:00:00]} Ke8 {[%emt 0:03:00]} 45. Bf3 {[%emt 0:00:00]} Nc4 {[%emt 0:03:44]} 46. Bc6+ {[%emt 0:00:00]} Kf8 {[%emt 0:01:30]} 47. Bc5 {[%emt 0:00:00]} Ne3+ {[%emt 0:00:11]} 48. Kf3 {[%emt 0:00:00]} 1-0

[Event "FIDE World Senior-50 CC 2023"]
[Site "Terrasini"]
[Date "2023.10.27"]
[Round "3.11"]
[White "Minnican, Alan"]
[Black "Seul, Georg"]
[Result "1/2-1/2"]
[ECO "A46"]
[WhiteElo "2071"]
[BlackElo "2383"]
[Annotator "ChessBase"]
[PlyCount "96"]
[EventDate "2023.10.22"]
[EventType "swiss"]
[EventCountry "ITA"]
[SourceTitle "playchess.com"]
[Source "ChessBase"]
[SourceQuality "1"]
[TimeControl "40/5400+30:1800+30"]

1. d4 {[%emt 0:00:35]} Nf6 {[%emt 0:00:07]} 2. Bf4 {[%emt 0:00:24]} e6 {[%emt 0:00:11]} 3. e3 {[%emt 0:00:12]} c5 {[%emt 0:00:38]} 4. Nf3 {[%emt 0:00:10]} cxd4 {[%emt 0:00:48]} 5. exd4 {[%emt 0:00:40]} b6 {[%emt 0:00:27]} 6. Nbd2 {[%emt 0:05:56]} Be7 {[%emt 0:00:41]} 7. Bd3 {[%emt 0:03:47]} Ba6 {[%emt 0:01:17]} 8. Bxa6 {[%emt 0:01:31]} Nxa6 {[%emt 0:00:04]} 9. O-O {[%emt 0:00:56]} O-O {[%emt 0:00:23]} 10. c3 {[%emt 0:00:28]} d6 {[%emt 0:02:34]} 11. Qe2 {[%emt 0:04:45]} Nc7 {[%emt 0:00:16]} 12. h3 {[%emt 0:00:35]} b5 {[%emt 0:03:09]} 13. a4 {[%emt 0:11:30]} a6 {[%emt 0:01:10]} 14. Nb3 {[%emt 0:05:43]} Nfd5 {[%emt 0:11:57]} 15. Bd2 {[%emt 0:08:46]} Qd7 {[%emt 0:10:05]} 16. axb5 {[%emt 0:03:45]} axb5 {[%emt 0:00:20]} 17. Rxa8 {[%emt 0:00:38]} Rxa8 {[%emt 0:00:11]} 18. Ra1 {[%emt 0:00:19]} Rxa1+ {[%emt 0:08:18]} 19. Nxa1 {[%emt 0:00:05]} Qc6 {[%emt 0:03:11]} 20. Nc2 {[%emt 0:04:26]} Qa6 {[%emt 0:22:03]} 21. Na3 {[%emt 0:06:00]} Nb6 {[%emt 0:03:38]} 22. Bg5 {[%emt 0:08:38]} f6 {[%emt 0:10:13]} 23. Be3 {[%emt 0:04:15]} b4 {[%emt 0:08:07]} 24. Qxa6 {[%emt 0:00:46]} Nxa6 {[%emt 0:00:02]} 25. Nc2 {[%emt 0:10:09]} bxc3 {[%emt 0:03:04]} 26. bxc3 {[%emt 0:00:07]} d5 {[%emt 0:01:04]} 27. Kf1 {[%emt 0:04:12]} Na4 {[%emt 0:01:57]} 28. Bd2 {[%emt 0:00:23]} Nc7 {[%emt 0:00:41]} 29. Ne3 {[%emt 0:02:58]} Nb6 {[%emt 0:02:26]} 30. Ke2 {[%emt 0:00:44]} Nb5 {[%emt 0:00:14]} 31. Kd3 {[%emt 0:01:02]} Nd6 {[%emt 0:00:06]} 32. Ng1 {[%emt 0:04:24]} Kf7 {[%emt 0:00:47]} 33. f3 {[%emt 0:00:35]} e5 {[%emt 0:01:37]} 34. Ne2 {[%emt 0:03:35]} Ke6 {[%emt 0:00:56]} 35. Bc1 {[%emt 0:00:28]} Nbc4 {[%emt 0:00:28]} 36. Nxc4 {[%emt 0:01:43]} Nxc4 {[%emt 0:00:08]} 37. Be3 {[%emt 0:01:01]} Bd6 {[%emt 0:00:45]} 38. Bf2 {[%emt 0:00:38]} Bc7 {[%emt 0:01:02]} 39. Be3 {[%emt 0:00:48]} Nd6 {[%emt 0:00:54]} 40. Bf2 {[%emt 0:01:12]} Nc4 {[%emt 0:02:49]} 41. Be3 {[%emt 0:31:17]} Bb6 {[%emt 0:30:14]} 42. Bg1 {[%emt 0:00:00]} Bd8 {[%emt 0:00:00]} 43. Be3 {[%emt 0:00:00]} Be7 {[%emt 0:00:00]} 44. Bc1 {[%emt 0:00:00]} g6 {[%emt 0:00:00]} 45. Be3 {[%emt 0:00:00]} Bd6 {[%emt 0:00:00]} 46. Bc1 {[%emt 0:00:00]} Bf8 {[%emt 0:00:00]} 47. Be3 {[%emt 0:00:00]} Nd6 {[%emt 0:00:00]} 48. Bd2 {[%emt 0:00:00]} Nc4 {[%emt 0:00:00]} 1/2-1/2

[Event "FIDE World Senior-50 CC 2023"]
[Site "Terrasini"]
[Date "2023.10.27"]
[Round "3.12"]
[White "Vinter-Schou, Uffe"]
[Black "Prasad, Devaki V"]
[Result "0-1"]
[ECO "E14"]
[WhiteElo "2345"]
[BlackElo "2200"]
[Annotator "ChessBase"]
[PlyCount "86"]
[EventDate "2023.10.22"]
[EventType "swiss"]
[EventCountry "ITA"]
[SourceTitle "playchess.com"]
[Source "ChessBase"]
[SourceQuality "1"]
[TimeControl "40/5400+30:1800+30"]

1. Nf3 {[%emt 0:00:08]} d5 {[%emt 0:01:10]} 2. c4 {[%emt 0:00:47]} e6 {[%emt 0:00:44]} 3. e3 {[%emt 0:01:44]} Nf6 {[%emt 0:00:10]} 4. b3 {[%emt 0:00:11]} b6 {[%emt 0:01:45]} 5. Bb2 {[%emt 0:00:22]} Bb7 {[%emt 0:00:08]} 6. Nc3 {[%emt 0:00:23]} Bd6 {[%emt 0:01:06]} 7. Rc1 {[%emt 0:04:47]} a6 {[%emt 0:00:12]} 8. d4 {[%emt 0:00:53]} Nbd7 {[%emt 0:00:21]} 9. Bd3 {[%emt 0:00:29]} O-O {[%emt 0:05:13]} 10. O-O {[%emt 0:00:14]} Ne4 {[%emt 0:07:22]} 11. Ne2 {[%emt 0:05:45]} Qe7 {[%emt 0:12:33]} 12. Qc2 {[%emt 0:06:10]} c5 {[%emt 0:03:16]} 13. Ng3 {[%emt 0:06:04]} f5 {[%emt 0:05:26]} 14. Ne5 {[%emt 0:00:59]} Rac8 {[%emt 0:11:36]} 15. Qe2 {[%emt 0:08:04]} a5 {[%emt 0:06:13]} 16. Nh5 {[%emt 0:11:56]} Nxe5 {[%emt 0:11:03]} 17. dxe5 {[%emt 0:00:18]} Bb8 {[%emt 0:00:14]} 18. Rfd1 {[%emt 0:09:04]} Rcd8 {[%emt 0:01:01]} 19. Nf4 {[%emt 0:04:20]} d4 {[%emt 0:05:03]} 20. exd4 {[%emt 0:04:53]} cxd4 {[%emt 0:01:45]} 21. f3 {[%emt 0:01:34]} Nc3 {[%emt 0:00:43]} 22. Bxc3 {[%emt 0:03:13]} dxc3 {[%emt 0:00:04]} 23. Kh1 {[%emt 0:00:12]} Kf7 {[%emt 0:05:36]} 24. c5 {[%emt 0:08:49]} Qxc5 {[%emt 0:00:18]} 25. Bc4 {[%emt 0:00:06]} Bc8 {[%emt 0:00:42]} 26. Nd3 {[%emt 0:10:41]} Qd4 {[%emt 0:00:33]} 27. Qc2 {[%emt 0:00:46]} Bxe5 {[%emt 0:04:26]} 28. Nxe5+ {[%emt 0:09:49]} Qxe5 {[%emt 0:00:06]} 29. Re1 {[%emt 0:00:11]} Qf6 {[%emt 0:00:48]} 30. Qxc3 {[%emt 0:00:47]} Qxc3 {[%emt 0:00:18]} 31. Rxc3 {[%emt 0:00:01]} Rd2 {[%emt 0:04:03]} 32. Rce3 {[%emt 0:00:32]} Re8 {[%emt 0:00:12]} 33. Re5 {[%emt 0:00:58]} Kf6 {[%emt 0:00:57]} 34. a4 {[%emt 0:01:03]} g5 {[%emt 0:02:13]} 35. Kg1 {[%emt 0:00:37]} h5 {[%emt 0:01:27]} 36. Kf1 {[%emt 0:00:38]} h4 {[%emt 0:00:30]} 37. h3 {[%emt 0:00:11]} Bd7 {[%emt 0:01:12]} 38. R1e3 {[%emt 0:00:52]} Re7 {[%emt 0:00:48]} 39. Be2 {[%emt 0:00:44]} f4 {[%emt 0:00:44]} 40. R3e4 {[%emt 0:00:26]} Bc6 {[%emt 0:00:10]} 41. Bb5 {[%emt 0:08:01]} Bxe4 {[%emt 0:00:19]} 42. Rxe4 {[%emt 0:01:35]} Rc7 {[%emt 0:00:26]} 43. Bc4 {[%emt 0:00:15]} e5 {[%emt 0:00:19]} 0-1

[Event "FIDE World Senior-50 CC 2023"]
[Site "Terrasini"]
[Date "2023.10.27"]
[Round "3.13"]
[White "Cummings, David H."]
[Black "Schnelzer, Reinhold"]
[Result "1-0"]
[ECO "D14"]
[WhiteElo "2325"]
[BlackElo "2174"]
[Annotator "ChessBase"]
[PlyCount "76"]
[EventDate "2023.10.22"]
[EventType "swiss"]
[EventCountry "ITA"]
[SourceTitle "playchess.com"]
[Source "ChessBase"]
[SourceQuality "1"]
[TimeControl "40/5400+30:1800+30"]

1. c4 {[%emt 0:00:11]} c6 {[%emt 0:00:13]} 2. d4 {[%emt 0:00:20]} d5 {[%emt 0:00:09]} 3. cxd5 {[%emt 0:00:19]} cxd5 {[%emt 0:00:08]} 4. Bf4 {[%emt 0:00:16]} Nc6 {[%emt 0:00:08]} 5. e3 {[%emt 0:00:13]} Nf6 {[%emt 0:00:18]} 6. Nc3 {[%emt 0:00:22]} Bf5 {[%emt 0:00:15]} 7. Nf3 {[%emt 0:00:11]} e6 {[%emt 0:00:04]} 8. Qb3 {[%emt 0:01:01]} Bb4 {[%emt 0:00:53]} 9. Ne5 {[%emt 0:00:49]} O-O {[%emt 0:01:38]} 10. Nxc6 {[%emt 0:01:01]} Bxc3+ {[%emt 0:01:39]} 11. Qxc3 {[%emt 0:00:28]} bxc6 {[%emt 0:00:09]} 12. Qa3 {[%emt 0:01:56]} a5 {[%emt 0:05:06]} 13. Be2 {[%emt 0:01:20]} Qb6 {[%emt 0:02:27]} 14. O-O {[%emt 0:00:22]} Rfc8 {[%emt 0:03:54]} 15. Rfc1 {[%emt 0:01:37]} Nd7 {[%emt 0:04:43]} 16. Bd6 {[%emt 0:07:56]} f6 {[%emt 0:02:28]} 17. Qc3 {[%emt 0:07:53]} a4 {[%emt 0:15:34]} 18. h4 {[%emt 0:09:41]} h6 {[%emt 0:01:02]} 19. a3 {[%emt 0:08:26]} Ra7 {[%emt 0:10:04]} 20. Qb4 {[%emt 0:14:37]} Raa8 {[%emt 0:02:34]} 21. Rc3 {[%emt 0:02:04]} Qxb4 {[%emt 0:01:47]} 22. axb4 {[%emt 0:01:30]} Nb6 {[%emt 0:00:51]} 23. Rac1 {[%emt 0:02:25]} Nc4 {[%emt 0:06:44]} 24. Bxc4 {[%emt 0:00:24]} dxc4 {[%emt 0:00:09]} 25. Rxc4 {[%emt 0:00:06]} Be4 {[%emt 0:00:22]} 26. f3 {[%emt 0:05:53]} Bd5 {[%emt 0:00:54]} 27. Rc5 {[%emt 0:00:16]} Rd8 {[%emt 0:04:21]} 28. Bg3 {[%emt 0:02:23]} f5 {[%emt 0:05:36]} 29. Re1 {[%emt 0:11:36]} Ra6 {[%emt 0:06:26]} 30. Be5 {[%emt 0:01:20]} Rd7 {[%emt 0:02:01]} 31. e4 {[%emt 0:02:48]} Bb3 {[%emt 0:03:12]} 32. Rec1 {[%emt 0:03:20]} Rb6 {[%emt 0:01:36]} 33. Rxc6 {[%emt 0:00:52]} Rxb4 {[%emt 0:00:19]} 34. Rc8+ {[%emt 0:00:46]} Kf7 {[%emt 0:02:05]} 35. h5 {[%emt 0:03:05]} Ba2 {[%emt 0:10:40]} 36. Ra8 {[%emt 0:02:27]} Rxb2 {[%emt 0:01:28]} 37. Rcc8 {[%emt 0:01:05]} Rdb7 {[%emt 0:00:33]} 38. Rg8 {[%emt 0:00:39]} R2b4 {[%emt 0:07:00]} 1-0

[Event "FIDE World Senior-50 CC 2023"]
[Site "Terrasini"]
[Date "2023.10.27"]
[Round "3.14"]
[White "Milat, Marcel"]
[Black "Cabe, Arlan"]
[Result "1-0"]
[ECO "D30"]
[WhiteElo "2207"]
[BlackElo "2303"]
[Annotator "ChessBase"]
[PlyCount "73"]
[EventDate "2023.10.22"]
[EventType "swiss"]
[EventCountry "ITA"]
[SourceTitle "playchess.com"]
[Source "ChessBase"]
[SourceQuality "1"]
[TimeControl "40/5400+30:1800+30"]

1. d4 {[%emt 0:07:36]} d5 {[%emt 0:00:29]} 2. c4 {[%emt 0:00:58]} c6 {[%emt 0:00:02]} 3. Nf3 {[%emt 0:00:42]} Nf6 {[%emt 0:00:06]} 4. e3 {[%emt 0:01:48]} e6 {[%emt 0:02:37]} 5. b3 {[%emt 0:02:22]} a5 {[%emt 0:02:44]} 6. a3 {[%emt 0:00:55]} Nbd7 {[%emt 0:04:37]} 7. Bb2 {[%emt 0:02:22]} b6 {[%emt 0:00:24]} 8. Bd3 {[%emt 0:05:19]} Ba6 {[%emt 0:04:03]} 9. Nc3 {[%emt 0:02:49]} Be7 {[%emt 0:05:37]} 10. O-O {[%emt 0:01:49]} O-O {[%emt 0:02:24]} 11. Re1 {[%emt 0:06:01]} dxc4 {[%emt 0:08:45]} 12. bxc4 {[%emt 0:00:34]} c5 {[%emt 0:00:12]} 13. d5 {[%emt 0:09:15]} exd5 {[%emt 0:02:38]} 14. cxd5 {[%emt 0:00:43]} c4 {[%emt 0:08:55]} 15. Bf1 {[%emt 0:19:32]} Re8 {[%emt 0:05:09]} 16. d6 {[%emt 0:04:33]} Bf8 {[%emt 0:00:07]} 17. e4 {[%emt 0:00:05]} Ng4 {[%emt 0:14:06]} 18. Qd4 {[%emt 0:13:10]} Qf6 {[%emt 0:12:21]} 19. e5 {[%emt 0:03:30]} Qf5 {[%emt 0:15:39]} 20. Nd5 {[%emt 0:00:10]} Nc5 {[%emt 0:07:26]} 21. h3 {[%emt 0:01:10]} Nh6 {[%emt 0:02:00]} 22. Bxc4 {[%emt 0:05:02]} Bxc4 {[%emt 0:00:19]} 23. Qxc4 {[%emt 0:00:02]} Nd3 {[%emt 0:00:14]} 24. Re2 {[%emt 0:05:31]} Bxd6 {[%emt 0:01:05]} 25. Ne3 {[%emt 0:00:05]} Nxb2 {[%emt 0:00:26]} 26. Rxb2 {[%emt 0:00:22]} Qe6 {[%emt 0:00:32]} 27. Qxe6 {[%emt 0:00:28]} Rxe6 {[%emt 0:00:03]} 28. exd6 {[%emt 0:00:09]} Rxd6 {[%emt 0:00:09]} 29. Rab1 {[%emt 0:00:02]} Rd3 {[%emt 0:00:58]} 30. Rxb6 {[%emt 0:00:09]} g6 {[%emt 0:00:13]} 31. R1b3 {[%emt 0:00:28]} Rad8 {[%emt 0:00:13]} 32. Ne5 {[%emt 0:00:26]} Rxb3 {[%emt 0:01:22]} 33. Rxb3 {[%emt 0:00:03]} Rc8 {[%emt 0:00:26]} 34. Rb5 {[%emt 0:00:18]} a4 {[%emt 0:00:35]} 35. Ra5 {[%emt 0:00:05]} f6 {[%emt 0:00:06]} 36. N5g4 {[%emt 0:00:06]} Nxg4 {[%emt 0:00:56]} 37. Nxg4 {[%emt 0:00:09]} 1-0